Cogmind - Beta 12 @@@ ROGUE MODE // 2023.11.03 @ 12:15:22 Player: Pitt Result: Destroyed by G-47 Trooper with Particle Gun Performance ------------- Evolutions (2) 1000 Regions Visited (4) 800 Robots Destroyed (73) 365 Value Destroyed (1843) 1843 Prototype IDs (3) 60 Alien Tech Used (0) 0 Bonus (34) 34 TOTAL SCORE: 4102 Bonus ------- High Alert Combat Kills 34 Cogmind --------- Core Integrity 0/550 Matter 300/300 Energy 290/290 System Corruption 0% Temperature Cool (10) Movement Hovering (170) Ox2 Location -8/Materials Parts ------- > --- POWER (1) -------- Reinforced Deuterium Engine > --- PROPULSION (4) --- Aerolev Unit > --- UTILITY (4) ------ Small Storage Unit Core Analyzer Hacking Suite > --- WEAPON (2) ------- (None) > --- INVENTORY (8) ---- Light Nuclear Core Reinforced Deuterium Engine Structural Scanner Improved Terrain Scanner Seismic Detector Hardened Medium Armor Plating Hardened Medium Armor Plating Recalibrator Peak State ------------ > --- POWER ------------ Reinforced Deuterium Engine > --- PROPULSION ------- Aerolev Unit Aerolev Unit Aerolev Unit > --- UTILITY ---------- Improved Cooling System Small Storage Unit Core Analyzer Hacking Suite > --- WEAPON ----------- Pulse Rifle Improved Light Cannon > --- INVENTORY -------- Light Nuclear Core Reinforced Deuterium Engine Structural Scanner Improved Terrain Scanner Seismic Detector Hardened Medium Armor Plating Hardened Medium Armor Plating Recalibrator [Rating: 35] Favorites ----------- Power Light Ion Engine Engine Light Ion Engine Power Core Light Nuclear Core Propulsion VTOL Module Leg Aluminum Leg Wheel Compact Wheel Hover Unit Aerolev Unit Flight Unit VTOL Module Utility Small Storage Unit Device Improved Terrain Scanner Storage Small Storage Unit Processor Core Analyzer Hackware System Shield Protection Light Armor Plating Weapon Light Assault Rifle Energy Gun Pulse Rifle Ballistic Gun Light Assault Rifle Ballistic Cannon Improved Light Cannon Special Weapon Mining Laser Build | -11 -10 -9 -9 -8 ------- Run | Jun Mat Mat Min Mat Slots Evolved 4 | . . 2 . 2 Power . | . . . . . Propulsion 2 | . . 2 . . Utility 2 | . . . . 2 Weapon . | . . . . . Parts Attached 81 | 9 9 18 7 38 Power 12 | 1 3 . 1 7 Engine 9 | 1 3 . 1 4 Core 3 | . . . . 3 Reactor . | . . . . . Propulsion 30 | 2 4 7 4 13 Treads . | . . . . . Leg 7 | . . . . 7 Wheel 4 | 2 2 . . . Hover 4 | . . . . 4 Flight 15 | . 2 7 4 2 Utility 17 | 3 2 1 1 10 Device 7 | 1 2 1 1 2 Storage 4 | 2 . . . 2 Processor 3 | . . . . 3 Hackware 2 | . . . . 2 Protection 1 | . . . . 1 Artifact . | . . . . . Weapon 22 | 3 . 10 1 8 Energy Gun 9 | 1 . 3 1 4 Energy Cannon . | . . . . . Ballistic Gun 9 | 2 . 5 . 2 Ballistic Cannon 1 | . . . . 1 Launcher . | . . . . . Special Weapon 3 | . . 2 . 1 Impact Weapon . | . . . . . Slashing Weapon . | . . . . . Piercing Weapon . | . . . . . Special Melee Weapon . | . . . . . Unidentified Prototypes 3 | . . 2 . 1 Parts Lost 28 | . 2 1 1 24 Power 4 | . 1 . . 3 Propulsion 11 | . . 1 . 10 Utility 6 | . 1 . 1 4 Weapon 7 | . . . . 7 Highest Loss Streak 6 | . 2 1 1 6 To Critical Strikes . | . . . . . Average Slot Usage (%) 93 | . 98 98 87 87 Engine 10 | . 13 11 11 6 Leg 6 | . . . . 18 Wheel 9 | . 26 . . . Hover 1 | . . . . 4 Flight 14 | . . 44 44 6 Device 12 | . 13 11 10 13 Storage 11 | . 14 11 11 8 Processor 1 | . . . . 2 Hackware 1 | . . . . 4 Protection 1 | . . . . 3 Energy Gun 5 | . . 9 . 10 Ballistic Gun 13 | . 28 4 11 4 Special Weapon 1 | . . 6 . . Naked Turns . | . . . . . Heaviest Build 97 | 12 14 17 15 97 Greatest Support 64 | 26 26 16 16 64 Greatest Overweight (x) 31 | . 3 1 . 31 Average Overweight (x) . | . . . . . Largest Inventory Capacity 25 | 8 8 8 8 25 Average Capacity 10 | 7 8 8 8 15 Most Carried 11 | 6 8 8 8 11 Average Carried 7 | 3 6 7 7 8 Final Capacity 8 | 8 8 8 8 8 Final Carried 8 | 6 8 8 8 8 Class Distribution -------------------- 44% | Mutant 30% | Scavenger-Mutant 14% | Sprinter 11% | Scavenger-Sprinter Dominant Class ---------------- Mutant | -10/Materials Sprinter | -9/Materials Scavenger-Sprinter | -9/Mines Scavenger-Mutant | -8/Materials Resources | -11 -10 -9 -9 -8 ----------- Run | Jun Mat Mat Min Mat Matter Collected 1849 | 285 298 200 196 870 Remotely . | . . . . . Salvage Created 2459 | 209 505 150 151 1444 Parts 185 | 22 45 14 18 86 Haulers Intercepted . | . . . . . Recyclers Shooed . | . . . . . Parts Field Recycled . | . . . . . Retrieved Matter . | . . . . . Parts Self-Destructed . | . . . . . Prevented . | . . . . . Kills | -11 -10 -9 -9 -8 ------- Run | Jun Mat Mat Min Mat Combat Hostiles Destroyed 52 | . 16 3 6 27 Guns 46 | . 16 3 6 21 Cannons 6 | . . . . 6 Classes Destroyed 11 | 2 3 1 . 5 Worker 3 | . . 1 . 2 Tunneler 8 | 6 1 . . 1 Recycler 6 | 1 . . 1 4 Operator 1 | . . . . 1 Watcher 3 | . 2 1 . . Swarmer 18 | . 9 . 6 3 Grunt 26 | . 7 3 . 16 Brawler 2 | . . . . 2 Sentry 3 | . . . . 3 Specialist 2 | . . . . 2 Heavy 1 | . . . . 1 Best Kill Streak 6 | 3 5 3 4 6 Combat Bots Only 5 | . 5 3 3 5 Max Kills in Single Turn 2 | 1 2 2 1 2 Gunslinging 1 | . 1 . . . Exploded . | . . . . . Melee . | . . . . . Uniques/NPCs Destroyed . | . . . . . Combat | -11 -10 -9 -9 -8 -------- Run | Jun Mat Mat Min Mat Damage Taken 3579 | . 421 226 100 2832 Core 825 | . 154 69 46 556 Absorbed by Shields . | . . . . . Core Remaining (%) 69 | 100 38 . 71 . Volleys Fired 233 | 19 49 23 14 128 Largest 2 | 2 2 2 1 2 Hottest 128 | 60 40 100 25 128 Shots Fired 409 | 36 98 41 14 220 Gun 366 | 36 98 36 14 182 Cannon 37 | . . . . 37 Launcher . | . . . . . Special 6 | . . 5 . 1 Kinetic 305 | 25 98 34 14 134 Thermal 93 | . . 7 . 86 Explosive . | . . . . . Electromagnetic 11 | 11 . . . . Robot Hit Streak 11 | 9 11 9 5 11 Robot Miss Streak 7 | 1 3 2 3 7 Penetration Max . | . . . . . Secondary Targets 4 | . 4 . . . Max Gunslinging Chain 1 | . 1 . . . Shots Hit Robots 256 | 26 62 25 8 135 Core Hits 117 | 9 29 6 7 66 Critical Kills 1 | . 1 . . . Critical Parts Destroyed 1 | . 1 . . . Critical Strikes 6 | . 2 . . 4 Burn 4 | . . . . 4 Destroy 2 | . 2 . . . Melee Attacks . | . . . . . Impact . | . . . . . Slashing . | . . . . . Piercing . | . . . . . Sneak Attacks . | . . . . . Combat Hostiles . | . . . . . Follow-up Attacks . | . . . . . Damage Inflicted 4282 | 301 670 439 126 2746 Guns 3494 | 276 670 439 126 1983 Cannons 509 | . . . . 509 Explosions 277 | 25 . . . 252 Melee . | . . . . . Ramming 2 | . . . . 2 Kinetic 3036 | 183 670 410 126 1647 Thermal 1151 | 25 . 29 . 1097 Explosive . | . . . . . Electromagnetic 93 | 93 . . . . Impact . | . . . . . Slashing . | . . . . . Piercing . | . . . . . Highest Corruption . | . . . . . Average Corruption . | . . . . . Corruption Purged . | . . . . . Corruption Blocked . | . . . . . Overload Shots . | . . . . . Overflow Damage 85 | . . . . 85 Projectiles 3 | . . . . 3 Explosions 82 | . . . . 82 Melee . | . . . . . Knockbacks 4 | . . . . 4 Impact . | . . . . . Kinetic 4 | . . . . 4 Secondary . | . . . . . Self-Inflicted Damage . | . . . . . Shots . | . . . . . Rammed . | . . . . . Targets Rammed 2 | . . . . 2 Kicked 2 | . . . . 2 Crushed . | . . . . . Highest Temperature 405 | 40 12 405 14 186 Average Temperature 61 | 21 6 90 9 53 Received Heat Transfer 1449 | . 84 123 . 1242 Siege Activations . | . . . . . Robots Corrupted . | . . . . . Combat Hostiles . | . . . . . Parts Fried . | . . . . . Impact Corruptions . | . . . . . Robots Melted . | . . . . . Combat Hostiles . | . . . . . Parts Melted . | . . . . . Heat Transferred 2494 | 50 . 74 . 2370 Parts Sabotaged . | . . . . . Parts Stolen . | . . . . . Parts Stripped . | . . . . . Power Chain Reactions 1 | 1 . . . . Missiles Intercepted . | . . . . . Alert | -11 -10 -9 -9 -8 ------- Run | Jun Mat Mat Min Mat Peak Influence 433 | 35 420 269 254 433 Initial 130 | . 22 130 104 98 Average 168 | 21 99 145 184 264 Maximum Alert Level 2 | . 2 1 1 2 Low Security (%) 55 | 100 73 71 93 12 Level 1 43 | . 25 28 6 86 Level 2 . | . . . . 1 Level 3 . | . . . . . Level 4 . | . . . . . Level 5 . | . . . . . High Security . | . . . . . Max Security . | . . . . . Squads Dispatched 12 | . 2 3 . 7 Investigation 3 | . 1 2 . . Extermination . | . . . . . Reinforcement 7 | . 1 1 . 5 Assault . | . . . . . Garrison 2 | . . . . 2 Intercept . | . . . . . Searches Triggered . | . . . . . Construction Impeded 1 | . . . . 1 Haulers Reinforced . | . . . . . Active Scanning Responses . | . . . . . Cargo Convoy Interrupts . | . . . . . Stealth | -11 -10 -9 -9 -8 --------- Run | Jun Mat Mat Min Mat Distress Signals 8 | . 1 1 . 6 Communications Jammed . | . . . . . Distress Signals . | . . . . . Times Spotted 107 | . 32 14 6 55 Peak Tracking Total 6 | . 5 6 3 6 Tactical Retreats 9 | . 3 2 . 4 Traps | -11 -10 -9 -9 -8 ------- Run | Jun Mat Mat Min Mat Traps Triggered 1 | . 1 . . . Indirectly . | . . . . . Trap Hack Attempts . | . . . . . Triggered . | . . . . . Disarmed . | . . . . . Reprogrammed . | . . . . . Reused . | . . . . . Traps Extracted . | . . . . . Installed . | . . . . . Triggered . | . . . . . Machines | -11 -10 -9 -9 -8 ---------- Run | Jun Mat Mat Min Mat Machines Disabled 2 | . . 1 . 1 Max in Single Turn 1 | . . 1 . 1 Machines Repaired . | . . . . . Machines Sabotaged . | . . . . . Overloaded Fab Kills . | . . . . . Hacking | -11 -10 -9 -9 -8 --------- Run | Jun Mat Mat Min Mat Machines Accessed 8 | . 1 4 . 3 Terminals 8 | . 1 4 . 3 Fabricators . | . . . . . Repair Stations . | . . . . . Recycling Units . | . . . . . Scanalyzers . | . . . . . Garrison Access . | . . . . . Total Hacks 30 | . 2 16 . 12 Successful 19 | . 2 11 . 6 Failed 11 | . . 5 . 6 Catastrophic 2 | . . 1 . 1 Database Lockouts . | . . . . . Manual 24 | . 2 12 . 10 Terminals 30 | . 2 16 . 12 Fabricators . | . . . . . Repair Stations . | . . . . . Recycling Units . | . . . . . Scanalyzers . | . . . . . Garrison Access . | . . . . . Terminal Hacks 8 | . 1 5 . 2 Machine Index 1 | . . 1 . . Terminal Index 2 | . 1 1 . . Alert Level 2 | . . 2 . . Locate Traps 1 | . . . . 1 Dispatch Records 1 | . . 1 . . Zone Layout 1 | . . . . 1 Fabricator Hacks . | . . . . . Repair Station Hacks . | . . . . . Recycling Unit Hacks . | . . . . . Scanalyzer . | . . . . . Garrison Access Hacks . | . . . . . Unauthorized Hacks 11 | . 1 6 . 4 Terminals 11 | . 1 6 . 4 Track 2 | . . 1 . 1 Assimilate 2 | . . 2 . . Botnet 6 | . 1 3 . 2 Detonate 1 | . . . . 1 Fabricators . | . . . . . Repair Stations . | . . . . . Recycling Units . | . . . . . Scanalyzers . | . . . . . Garrison Access . | . . . . . Data Cores Recovered . | . . . . . Used . | . . . . . Hacking Detections 7 | . 1 4 . 2 Full Trace Events 2 | . . 2 . . Feedback Events . | . . . . . Feedback Blocked . | . . . . . Robot Schematics Acquired . | . . . . . Robots Built . | . . . . . Authchips . | . . . . . Time . | . . . . . Total Robot Build Rating . | . . . . . Part Schematics Acquired . | . . . . . Parts Built . | . . . . . Authchips . | . . . . . Time . | . . . . . Total Part Build Rating . | . . . . . Parts Repaired . | . . . . . Time . | . . . . . Parts Recycled . | . . . . . Recycled Matter . | . . . . . Retrieved Matter . | . . . . . Retrieved Components . | . . . . . Parts Scanalyzed . | . . . . . Part Schematics Acquired . | . . . . . Parts Damaged . | . . . . . Bothacking | -11 -10 -9 -9 -8 ------------ Run | Jun Mat Mat Min Mat Used RIF Installer . | . . . . . Robots Hacked . | . . . . . Non-combat . | . . . . . Combat . | . . . . . Robot Hacks Applied . | . . . . . Relay Couplers Released . | . . . . . Fabnet Peak Effective % . | . . . . . Robots Rewired . | . . . . . Allies Hacked . | . . . . . Hacks Repelled . | . . . . . Allies | -11 -10 -9 -9 -8 -------- Run | Jun Mat Mat Min Mat Total Allies . | . . . . . Largest Group . | . . . . . Highest-Rated Group . | . . . . . Highest-Rated Ally . | . . . . . Total Orders . | . . . . . Ally Attacks . | . . . . . Total Damage . | . . . . . Kills . | . . . . . Allies Corrupted . | . . . . . Allies Melted . | . . . . . Intel | -11 -10 -9 -9 -8 ------- Run | Jun Mat Mat Min Mat Robot Analysis Total . | . . . . . Derelict Logs Recovered 2 | . . . 2 . Drone Launches . | . . . . . Drone Recoveries . | . . . . . Exploration | -11 -10 -9 -9 -8 ------------- Run | Jun Mat Mat Min Mat Turns Passed 3986 | 267 1288 630 391 1410 Spaces Moved 1769 | 199 361 430 205 574 Core 4 | 1 . . . 3 Treads . | . . . . . Legs 283 | . . . . 283 Wheels 520 | 198 322 . . . Hover 154 | . . . . 154 Flight 808 | . 39 430 205 134 Fastest Speed 26 | 50 90 26 27 29 Average Speed 86 | 89 92 30 28 143 Slowest Speed 1600 | 100 280 106 29 1600 Overloaded Moves . | . . . . . Propulsion Burnouts . | . . . . . Robots Hopped 6 | . . 2 3 1 Cave-ins Triggered . | . . . . . Exploration Rate (%) 31 | 4 35 39 39 40 Regions Visited 4 Branch Regions 1 Pre-discovered Areas . | . . . . . Known Exits Taken . | . . . . . Unknown Exits Taken 4 | 1 1 1 1 . Scrap Searched 1 | . . . 1 . Spaces Dug 4 | . . 4 . . Terrain Destroyed 29 | 8 . 5 . 16 Melee . | . . . . . Projectile 8 | . . 5 . 3 AOE 21 | 8 . . . 13 Terrain Rammed . | . . . . . Walls Destroyed . | . . . . . Machines Disabled . | . . . . . Actions | -11 -10 -9 -9 -8 --------- Run | Jun Mat Mat Min Mat Total 3860 | 251 1227 885 526 971 Wait 1704 | 18 794 401 295 196 Move 1753 | 198 360 425 198 572 Hop 6 | . . 2 3 1 Pick Up 37 | 5 6 6 4 16 Fast Attach 32 | 8 3 4 . 17 Attach 19 | 1 1 3 2 12 Detach 7 | 2 . 2 . 3 Swap 30 | . 5 11 5 9 Drop 37 | . 9 8 5 15 Fire 233 | 19 49 23 14 128 Melee . | . . . . . Ram . | . . . . . Kick 2 | . . . . 2 Crush . | . . . . . Escape Stasis . | . . . . . Rewire . | . . . . . Trap . | . . . . . Miscellaneous . | . . . . . Route ------- -11/Junkyard -10/Materials (discovered 2 exits: *Mat / [*Min]) -9/Materials -9/Mines -8/Materials (discovered 2 exits: [*Fac] / [*Sto]) History --------- Turn | Location | Event 5 | -11/Junkyard | Discovered new exit (range 16) 268 | -11/Junkyard | Entered Materials 307 | -10/Materials | Build established: Mutant 1111 | -10/Materials | Discovered new exit (range 14) 1432 | -10/Materials | Discovered new exit (range 15) 1442 | -10/Materials | Core integrity fell below 50% 1556 | -10/Materials | Entered another Materials area 1556 | -9/Materials | Evolved 2 slots: Propulsion x2 1860 | -9/Materials | Build established: Sprinter 2181 | -9/Materials | Discovered new exit (range 8) 2186 | -9/Materials | Entered Mines 2514 | -9/Mines | Build established: Scavenger-Sprinter 2533 | -9/Mines | Learned Materials terminal intel 2536 | -9/Mines | Learned Materials stockpile data 2547 | -9/Mines | Discovered new exit (range 9) 2577 | -9/Mines | Entered Materials 2577 | -8/Materials | Evolved 2 slots: Utility x2 2579 | -8/Materials | Loaded intel: 12 terminal locations 2963 | -8/Materials | Build established: Scavenger-Mutant 3030 | -8/Materials | Discovered new exit (range 12) 3059 | -8/Materials | Core integrity fell below 50% 3081 | -8/Materials | Lost 3 parts (1u2w) 3729 | -8/Materials | Lost 6 parts (1p2n2u1w) 3836 | -8/Materials | Discovered new exit (range 13) 3858 | -8/Materials | Garrison activated, responded to threat 3892 | -8/Materials | Core integrity fell below 20% 3987 | -8/Materials | Destroyed by G-47 Trooper with Particle Gun Last Messages --------------- 03949_ R-06 Scavenger collects Particle Gun. 03950_ G-47 Trooper suffers critical hit (Burn). 03950_ G-47 Trooper destroyed. 03950_ Pulse Rifle destroyed. 03951_ Acquired 39 matter. 03952_ R-06 Scavenger collects Rnf. Ion Engine. 03952_ U-05 Engineer destroyed. 03953_ K-01 Serf cleans the Fusion Modulator. 03956_ R-06 Scavenger collects Welding Torch. 03956_ Critical hit (Burn: +37). 03958_ K-01 Serf cleans the Fusion Modulator. 03958_ Aerolev Unit destroyed. 03961_ R-06 Scavenger collects Aluminum Leg. 03961_ K-01 Serf collects debris. 03962_ Imp. Light Cannon destroyed. 03962_ Critical hit (Burn: +37). 03965_ K-01 Serf collects debris. 03967_ Acquired 4 matter. 03969_ Acquired 6 matter. 03970_ K-01 Serf collects debris. Map ----- +----------------------------------------------------+ | ????????????????? #????????##*[[= #?? | | ???????????????? ! #??????#?## = =#?? | | ???????????????####### ##### #??????? # ## | | ??????????????#????? #?? # ## ????" #######?? | | ????????????????????##?????# ## """"" # ##? | | ???????????????????????????# ## """"" # #?? | | ???????????????????????????# ## """ # #?? | | ???????????????????????????# ## # ] #?? | | ???????????????????????????# ## # #? | | ???????????????????????????# ## # ##? | | ?????????????????????####### ???? ?# % #?? | | ?????????????????????# ######+######+##### | | ?????????????????????# % %% % | | ?????????????????????# % = | | ?????????????????????# | | ?????????????????????# """ %%""" ######## | | ?????????????????????# ^ """ % """"" #??????# | | ?????????????????????# " """"" #??????# | | ????????S????????????# """" #??????# | | ???????"""???????????# """ #??????# | | ????????"" ??????????# ######## | | ????????? #?????????#u # ## | | ?? ####+############# ^ # | | ? # | | ? ^ ^ # | | ? k g @ ]] ^^ # ## | | ???????########/######### ] %[[ ## | | ???????# ! *%%%#?# [! k ## | | ???????# ! ### = [! ## | | ???????# """ """ +%% % % ## | | ???????# """ """%### a % ## | | /??????# """ """!#?# ### ####+##r ## | | ???????# #####+##### ## %=[# ## | | ???????# = # [## ##"" # """ ## | | ???????# # T ## ##"T # "Y" ### | | ???????########+## ## ##"" # " " # | | ??????????????# ?# """ ## ## # / | | ??????????????# ?# """"" ## ## # # | | ??????????????# ?# """"" ## ## # # | | ??????????????# ?# """"" ## ## # # | | ??????????????? ?# "" ## ## [ # # | | ??????????????# ?# ## ####### # | | ?????????????## ######+##### | | ?????????????# | | ?????????????+ ### ^ | | ?????????????# ####+## | | ?????????????## ##### # | | ??????????????#?????# ################# # """ | | ?????????????##+##### #???????????????# # """ | | ?????????????? #% #####???????????# # """ | +----------------------------------------------------+ Best States ------------- Heat Dissipation 72 Energy Generation 16 Energy Capacity 290 Matter Stores 300 Matter Capacity 300 Sight Range 20 Terrain Scan Range 16 Terrain Scan Density 10 Armor Coverage 150 Evasion (%) 64 Targeting Accuracy 5 Core Analysis 6 Offensive Hacking 10 Defensive Hacking 10 Item Schematics ----------------- None Robot Schematics ------------------ None Fabricated ------------ Nothing Alien Tech Used ----------------- None Achievements -------------- None Challenges ------------ None Game ------ Seed MissileScrapMallet Manual? 0 Play Time 00:41:17 Cumulative 178.6 hours Start 2023.11.03 @ 10:07:53 End 2023.11.03 @ 12:15:22 Sessions 3 Manual Loads 0 Difficulty Rogue Special Mode None Game No. 269 Rogue 269 Adventurer 0 Explorer 0 Win Type - Total 0 Types 0/0/0/0/0/0/0/0/0 Lore% 51 Gallery% 59 Achievement% 40 Wizard Run 0 Options --------- ASCII 0 Keyboard 0 Movement Mouse Keybinds 0 Fullscreen 1 Font 12/Smallcaps Map View 83x54 Tactical HUD 1 Map Filters NONE Filters NONE Steam 1 RUN: b344a835-4030-4db4-bff9-5c89cfc04858